bitfinex/quotes_SOLUSD_20260108
["timestamp","ask_amount","ask_price","bid_price","bid_amount"]
[1767880956598,11.1506187,134.22,134.18,0.67383576]
[1767880956989,3.56191708,134.21,134.18,0.67383576]
[1767880957495,11.11247128,134.21,134.18,0.67383576]
[1767880960385,0.13745543,134.18,134.14,0.67383576]
[1767880960577,3.56191708,134.16,134.13,0.67383576]
[1767880963175,11.15278952,134.16,134.13,0.67383576]
[1767880963375,3.56191708,134.15,134.13,0.67383576]
[1767880966287,11.01626115,134.15,134.11,0.67383576]
[1767880968297,3.56191708,134.15,134.12,0.67383576]
[1767880969505,7.59282362,134.15,134.11,0.67383576]
[1767880969686,11.1547407,134.15,134.11,0.67383576]
[1767880970086,18.63539838,134.16,134.12,0.67383576]
[1767880970087,7.5530613,134.16,134.12,0.67383576]
[1767880970276,11.11497838,134.16,134.12,0.67383576]
[1767880971398,3.66091708,134.16,134.13,0.67383576]
[1767880971602,11.01586795,134.16,134.13,0.67383576]
[1767880971777,3.70014142,134.15,134.11,0.67383576]
[1767880971977,3.66130932,134.14,134.11,0.67383576]
[1767880973276,0.09939224,134.14,134.11,0.67383576]
[1767880973504,3.56191708,134.14,134.11,0.67383576]
[1767880975103,7.55112012,134.19,134.14,0.67383576]
[1767880975296,3.56191708,134.18,134.14,0.67383576]
[1767880975682,3.56191708,134.17,134.14,0.67383576]
[1767880977804,11.01516333,134.17,134.14,0.67383576]
[1767880978783,7.45324625,134.17,134.14,0.67383576]
[1767880979684,24.73334856,134.19,134.14,0.67383576]
[1767880980402,3.56191708,134.18,134.14,0.67383576]
[1767880980707,21.17143148,134.19,134.13,0.67383576]
[1767880980708,3.66130932,134.17,134.13,0.67383576]
[1767880981006,11.11483901,134.17,134.13,0.67383576]
[1767880981803,3.56191708,134.16,134.13,0.67383576]
[1767880984212,11.01600037,134.16,134.13,0.67383576]
[1767880984598,3.69937251,134.14,134.1,0.71046714]
[1767880984802,3.56191708,134.13,134.1,0.71046714]
[1767880985004,3.66207054,134.13,134.09,0.66189205]
[1767880985711,0.10015346,134.13,134.09,0.66189205]
[1767880985891,3.56191708,134.11,134.09,0.66189205]
[1767880986095,3.53191709,134.11,134.09,0.66189205]
[1767880986492,11.01826961,134.12,134.09,0.66189205]
[1767880987198,7.45635253,134.12,134.09,0.66189205]
[1767880987403,11.01826961,134.12,134.09,0.66189205]
[1767880988214,11.15535202,134.12,134.09,0.66189205]
[1767880988418,3.56191708,134.11,134.08,0.86189205]
[1767880989503,11.01875346,134.11,134.08,0.86189205]
[1767880989908,11.01875346,134.11,134.09,0.66189205]
[1767880991321,11.01796792,134.12,134.09,0.66189205]
[1767880994325,7.45658492,134.11,134.09,0.66189205]
[1767880994526,11.018502,134.11,134.09,0.66189205]
[1767880995323,3.56191708,134.11,134.09,0.66189205]
[1767880995906,11.01850123,134.11,134.09,0.66189205]
[1767880996603,3.56191708,134.1,134.08,0.2]
[1767880996804,7.59480849,134.11,134.08,0.86189205]
[1767880997028,3.56191708,134.1,134.08,0.86189205]
[1767880997329,7.59480849,134.11,134.05,0.1]
[1767880997330,3.56191708,134.09,134.05,0.1]
[1767880997510,3.56191708,134.08,134.05,0.1]
[1767880997708,3.56191708,134.09,134.05,0.1]
[1767880998427,11.01960129,134.09,134.05,0.1]
[1767880998621,7.45768421,134.09,134.05,0.1]
[1767880999315,9.73939989,134.09,134.06,0.66189205]
[1767881000125,7.45768421,134.09,134.06,0.66189205]
[1767881000327,9.73939989,134.09,134.06,0.66189205]
[1767881001227,7.45768421,134.09,134.06,0.66189205]
[1767881001427,9.73939989,134.09,134.06,0.66189205]
[1767881002930,2.28171568,134.08,134.06,0.66189205]
[1767881003628,2.95716723,134.07,134.05,0.1]
[1767881003926,1.28171569,134.07,134.05,0.1]
[1767881005008,2.28171568,134.06,134.05,0.1]
[1767881006208,9.74093466,134.07,134.05,0.1]
[1767881006623,9.95450799,134.07,134.05,0.1]
[1767881007330,2.96178555,134.06,134.04,0.2]
[1767881007835,0.2182383,134.05,134.04,0.2]
[1767881008022,2.28171568,134.06,134.04,0.2]
[1767881008225,9.74138947,134.06,134.04,0.2]
[1767881010307,2.28171568,134.05,134.04,0.2]
[1767881010509,9.74138947,134.06,134.04,0.2]
[1767881010933,2.96148855,134.05,134.01,0.66189205]
[1767881011316,2.28171568,134.03,134.01,0.66189205]
[1767881011514,0.67486346,134.03,133.99,7.5629532]
[1767881011722,2.28171568,134.04,134.0,0.66189205]
[1767881011936,2.28171568,134.03,134.0,0.66189205]
[1767881012117,2.47054802,134.03,134.0,0.66189205]
[1767881012515,2.28171568,134.03,134.0,0.66189205]
[1767881013722,7.63796989,134.04,134.0,0.66189205]
[1767881013936,2.28171568,134.03,134.0,0.66189205]
[1767881014324,7.63796989,134.04,134.0,0.66189205]
[1767881014518,2.96320491,134.01,133.99,0.1]
[1767881014737,0.68148923,134.01,133.99,0.1]
[1767881014922,0.6916795,134.03,133.99,0.79023232]
[1767881015236,2.97339518,134.03,133.99,0.79023232]
[1767881015640,0.17704477,134.02,133.99,0.79023232]
[1767881015845,2.45876045,134.02,133.99,0.79023232]
[1767881016138,2.28171568,134.0,133.98,0.69023232]
[1767881016733,8.1489435,134.01,133.97,0.79023232]
[1767881016921,2.28171568,134.0,133.97,0.79023232]
[1767881018724,8.1489435,134.01,133.97,0.79023232]
[1767881019016,2.28171568,134.0,133.97,0.79023232]
[1767881019652,2.96320491,133.99,133.97,0.1]
[1767881020341,2.28171568,133.99,133.97,0.1]
[1767881020683,2.28171568,133.99,133.97,0.79023232]
[1767881021447,2.46385533,133.99,133.97,0.1]
[1767881021747,0.18713314,133.97,133.93,0.69023232]
[1767881021947,14.3116795,133.98,133.94,0.69023232]
[1767881022252,2.28171568,133.98,133.95,0.69023232]
[1767881022544,21.08157289,134.02,133.96,0.69023232]
[1767881022751,2.28171568,133.99,133.96,0.69023232]
[1767881023125,0.17704477,134.01,133.96,0.69023232]
[1767881023445,2.28171568,133.98,133.96,0.69023232]
[1767881024340,2.28171568,133.98,133.94,7.46595992]
[1767881024341,2.28171568,133.98,133.94,0.69023232]
[1767881024551,2.28171568,133.97,133.94,0.69023232]
[1767881025127,10.42703531,133.98,133.94,0.69023232]
[1767881025339,0.68148923,133.98,133.94,0.69023232]
[1767881025547,2.28171568,133.97,133.94,0.69023232]
[1767881026429,2.28171568,133.98,133.95,0.69023232]
[1767881028151,2.28171568,133.97,133.95,0.69023232]
[1767881028453,2.28171568,133.96,133.92,0.69023232]
[1767881028757,2.28171568,133.94,133.92,0.69023232]
[1767881030354,0.17704477,133.96,133.92,0.69023232]
[1767881030656,2.28171568,133.94,133.92,0.69023232]
[1767881030852,26.12580267,133.97,133.92,0.69023232]
[1767881030853,2.28171568,133.93,133.92,0.69023232]
[1767881031036,0.68653316,133.95,133.92,0.69023232]
[1767881031236,2.28171568,133.93,133.92,0.69023232]
[1767881031549,2.28171568,133.93,133.91,0.1]
[1767881032961,8.15245099,133.95,133.91,0.1]
[1767881033262,22.39,134.0,133.91,0.1]
[1767881033263,0.6916795,134.01,133.93,2.28171568]
[1767881033439,0.6916795,134.01,133.94,8.15587361]
[1767881033440,2.97339518,133.99,133.94,8.15587361]
[1767881033641,2.28171568,133.98,133.95,0.69023232]
[1767881036033,2.28171568,133.97,133.95,0.69023232]
[1767881036450,8.15495713,133.99,133.95,0.69023232]
[1767881036667,2.28171568,133.97,133.95,0.69023232]
[1767881037156,8.15495713,133.99,133.95,0.69023232]
[1767881037364,0.6916795,133.99,133.95,8.15561213]
[1767881037654,2.28171568,133.98,133.95,8.15561213]
[1767881038169,2.28171568,133.97,133.94,0.69023232]
[1767881038459,0.6916795,133.98,133.94,0.69023232]
[1767881038649,2.28171568,133.97,133.94,0.69023232]
[1767881039254,2.28171568,133.95,133.92,0.69023232]
[1767881039558,2.97339518,133.95,133.92,0.69023232]
[1767881039960,2.28171568,133.94,133.91,0.79023232]
[1767881040141,2.28171568,133.94,133.91,8.2576656]
[1767881040461,2.97339518,133.95,133.91,8.2576656]
[1767881040634,2.28171568,133.94,133.91,8.2576656]
[1767881040836,2.28171568,133.94,133.91,0.79023232]
[1767881041047,2.97339518,133.94,133.91,0.1]
[1767881041359,2.28171568,133.94,133.91,0.79023232]
[1767881041868,8.15620329,133.97,133.91,0.79023232]
[1767881042159,2.97339518,133.96,133.92,0.69023232]
[1767881042362,2.97365209,133.95,133.91,0.76170161]
[1767881042734,2.28171568,133.94,133.91,0.76170161]
[1767881043145,2.97365209,133.95,133.91,0.76170161]
[1767881043543,0.69193641,133.94,133.91,7.56748724]
[1767881044063,2.97365209,133.96,133.92,0.66170161]
[1767881044233,0.69193641,133.96,133.92,0.66170161]
[1767881044756,0.69193641,133.95,133.92,0.66170161]
[1767881044947,8.15656128,133.97,133.92,8.12852931]
[1767881045455,0.69193641,133.96,133.92,8.12852931]
[1767881045662,9.74634055,133.97,133.91,7.56767331]
[1767881045663,2.97365209,133.95,133.91,7.56767331]
[1767881045953,2.97365209,133.95,133.91,8.22937492]
[1767881046758,0.69193641,133.98,133.94,2.94341729]
[1767881047144,2.97365209,133.97,133.93,0.66170161]
[1767881047349,0.69193641,133.97,133.93,2.94341729]
[1767881047957,0.69193641,133.97,133.93,8.1282249]
[1767881048158,0.71905057,133.99,133.95,2.94341729]
[1767881048658,0.71905057,133.99,133.96,2.94893819]
[1767881048855,0.71905057,133.99,133.96,0.66722251]
[1767881049968,0.71905057,133.99,133.96,2.94893819]
[1767881050862,0.71905057,133.99,133.96,10.4138236]
[1767881051357,0.71905057,133.99,133.96,0.66722251]
[1767881051563,0.71905057,133.99,133.96,2.94893819]
[1767881052264,0.71905057,133.99,133.95,8.13242234]
[1767881052464,3.00076625,133.99,133.95,8.13242234]
[1767881052660,3.00076625,133.99,133.95,10.41413802]
[1767881052961,7.46271869,134.0,133.95,8.13242234]
[1767881053162,2.28171568,133.99,133.95,8.13242234]
[1767881053378,9.74516874,133.99,133.95,0.66722251]
[1767881053560,9.74456364,134.0,133.95,2.94893819]
[1767881053978,9.74456364,134.0,133.95,0.66722251]
[1767881054167,7.46284796,134.0,133.96,0.66722251]
[1767881054347,9.74456364,134.0,133.97,0.66722251]
[1767881054569,7.46284796,134.0,133.97,0.66722251]
[1767881054766,9.74456364,134.0,133.97,0.66722251]
[1767881054952,10.46361421,134.0,133.97,0.66722251]
[1767881055145,0.71905057,134.0,133.97,0.66722251]
[1767881055974,0.71905057,133.98,133.94,8.13289794]
[1767881056157,0.71905057,133.98,133.94,10.41461362]
[1767881056467,0.71905057,133.98,133.95,2.28171568]
[1767881056675,0.71905057,133.98,133.94,8.13289794]
[1767881056966,0.71905057,133.98,133.94,10.41461362]
[1767881057350,0.71905057,133.96,133.92,0.66722251]
[1767881057550,0.71905057,133.95,133.91,8.2347337]
[1767881057779,0.71905057,133.95,133.92,0.66722251]
[1767881058078,3.00076625,133.96,133.92,8.13427806]
[1767881058484,3.00076625,133.96,133.92,0.66722251]
[1767881059081,2.28171568,133.95,133.92,0.66722251]
[1767881059284,0.71905057,133.92,133.9,16.49482428]
[1767881059574,0.099,133.9,133.84,0.66722251]
[1767881059749,2.28171568,133.88,133.84,7.47145444]
[1767881059949,0.099,133.9,133.84,9.75317012]
[1767881060150,0.71905057,133.89,133.84,7.47145444]
[1767881060659,13.64,133.91,133.8,24.20162229]
[1767881060660,0.71678411,133.86,133.8,17.52151159]
[1767881060866,0.49464829,133.85,133.79,26.25913527]
[1767881061066,0.28432314,133.9,133.79,26.25913527]
[1767881061067,0.71905057,133.89,133.8,7.47329591]
[1767881061373,0.71905057,133.89,133.79,0.1]
[1767881061374,0.71905057,133.89,133.79,39.89925278]
[1767881061758,3.57618491,133.88,133.84,0.66722251]
[1767881061963,4.0685894,133.88,133.84,0.66722251]
[1767881062270,4.0685894,133.88,133.84,4.24340742]
[1767881062483,21.82745569,133.9,133.84,0.66722251]
[1767881062686,0.49240449,133.89,133.85,0.66722251]
[1767881062855,4.0685894,133.89,133.85,0.66722251]
[1767881063056,8.18686998,133.91,133.86,0.66722251]
[1767881063275,0.71905057,133.91,133.86,0.66722251]
[1767881063465,4.0685894,133.9,133.85,0.66722251]
[1767881063661,14.35905057,133.91,133.87,0.66722251]
[1767881063862,17.93523548,133.91,133.87,0.66722251]
[1767881064062,8.18566366,133.93,133.88,0.66722251]
[1767881064272,4.29523548,133.92,133.88,0.21734288]
[1767881065172,0.71905057,133.91,133.85,7.75531212]
[1767881065386,0.71905057,133.9,133.85,11.04717389]
[1767881065589,0.71905057,133.9,133.85,7.47098898]
[1767881065783,4.29523548,133.9,133.86,3.57618491]
[1767881066090,0.71905057,133.9,133.86,3.57618491]
[1767881066299,11.7630285,133.91,133.86,0.66722251]
[1767881066473,8.18684359,133.91,133.87,0.66722251]
[1767881066795,0.71905057,133.91,133.87,4.24340742]
[1767881067090,3.57618491,133.92,133.88,0.66722251]
[1767881067297,8.18564262,133.93,133.89,0.66722251]
[1767881067499,11.76182753,133.93,133.89,0.66722251]
[1767881068161,4.29523548,133.93,133.89,0.66722251]
[1767881068670,0.71905057,133.93,133.89,0.66722251]
[1767881068863,4.29523548,133.93,133.89,0.66722251]
[1767881069278,8.18566404,133.93,133.89,0.66722251]
[1767881069672,4.29523548,133.92,133.89,0.66722251]
[1767881070385,0.71905057,133.92,133.89,0.66722251]
[1767881070885,0.71905057,133.94,133.89,8.13596588]
[1767881071191,0.71905057,133.92,133.89,0.66722251]
[1767881071375,0.71905057,133.92,133.88,11.71240524]
[1767881071780,0.71905057,133.92,133.88,8.13622033]
[1767881071983,0.71905057,133.92,133.88,11.71240524]
[1767881072180,4.29523548,133.94,133.89,11.71222387]
[1767881072982,0.65656401,133.93,133.9,0.66710681]
[1767881073563,7.46582019,133.95,133.91,0.66710681]
[1767881073564,11.69856911,133.95,133.91,0.66710681]
[1767881073783,0.65656401,133.94,133.91,0.66710681]
[1767881073987,4.23274892,133.94,133.91,0.66710681]
[1767881074993,0.65656401,133.94,133.91,3.57618491]
[1767881075287,0.65656401,133.95,133.92,4.24329172]
[1767881075477,7.46444636,133.97,133.92,4.24329172]
[1767881075478,0.65656401,133.96,133.92,4.24329172]
[1767881075884,8.12046057,133.98,133.94,0.66710681]
[1767881076080,0.65656401,133.98,133.94,4.18329172]
[1767881076280,0.65656401,133.98,133.95,3.57618491]
[1767881076494,43.51715838,134.04,133.96,3.57618491]
[1767881076495,0.65656401,133.99,133.96,3.57618491]
[1767881076866,0.65656401,133.99,133.93,13.64]
[1767881077067,0.65656401,133.97,133.93,3.57618491]
[1767881077669,0.65656401,133.98,133.94,3.57618491]
[1767881077875,0.65656401,133.99,133.95,3.57618491]
[1767881078275,8.12005853,133.99,133.95,0.66710681]
[1767881078508,8.12005853,133.99,133.96,3.57618491]
[1767881078685,8.11947832,134.0,133.96,0.66710681]
[1767881079004,0.65656401,133.98,133.94,0.66710681]
[1767881079167,0.65656401,133.98,133.95,3.57618491]
[1767881079367,11.69566323,134.0,133.96,0.66710681]
[1767881079590,0.65656401,133.99,133.95,0.66710681]
[1767881079890,0.65656401,133.99,133.96,3.57618491]
[1767881080069,0.65656401,133.99,133.96,4.24329172]
[1767881080269,0.65656401,134.0,133.97,3.57618491]
[1767881080581,8.11933758,134.0,133.96,4.24329172]
[1767881081093,0.65656401,134.0,133.96,4.24329172]
[1767881081282,0.65656401,134.0,133.94,0.66710681]
[1767881081486,0.65656401,134.0,133.96,4.24329172]
[1767881081680,0.65656401,134.0,133.93,32.30597281]
[1767881081681,0.65656401,133.98,133.94,0.66710681]
[1767881081996,11.69689615,133.98,133.94,0.66710681]
[1767881082296,11.69689615,133.98,133.94,4.24329172]
[1767881082506,8.12071124,133.98,133.94,4.24329172]
[1767881083072,8.12071124,133.98,133.95,3.57618491]
[1767881083290,4.23274892,134.0,133.96,4.24329172]
[1767881083503,0.65656401,134.0,133.96,4.24329172]
[1767881083996,7.46299302,134.0,133.97,4.24329172]
[1767881084217,8.11955703,134.0,133.97,3.57618491]
[1767881084394,3.57618491,134.08,134.0,0.66710681]
[1767881084691,3.77618491,134.05,134.0,4.24329172]
[1767881084889,0.2,134.05,134.0,4.24329172]
[1767881085085,3.57618491,134.04,134.0,4.24329172]
[1767881085388,3.77618491,134.05,134.0,4.24329172]
[1767881085596,3.57618491,134.04,134.0,4.24329172]
[1767881085904,3.57618491,134.03,134.0,0.66710681]
[1767881086096,11.03664447,134.04,134.0,0.66710681]
[1767881086404,11.69320848,134.04,134.0,0.66710681]
[1767881086978,0.40904865,134.0,133.95,0.66710681]
[1767881087185,3.57618491,133.99,133.96,0.66710681]
[1767881087481,3.57618491,134.0,133.97,0.66710681]
[1767881087687,13.64,134.01,133.97,0.66710681]
[1767881087688,14.04904865,134.01,133.97,0.66710681]
[1767881087896,3.57618491,134.0,133.97,0.66710681]
[1767881088291,14.04904865,134.01,133.97,0.66710681]
[1767881088292,3.57618491,133.99,133.97,0.66710681]
[1767881088697,14.04904865,134.01,133.97,0.66710681]
[1767881088904,17.21618491,134.01,133.98,0.66710681]
[1767881089103,21.75629771,134.01,133.97,0.66710681]
[1767881089403,3.57618491,134.0,133.97,0.66710681]
[1767881089992,3.98768396,134.0,133.96,0.66710681]
[1767881090200,0.85656401,134.05,133.99,3.57618491]
[1767881090388,4.23274892,134.03,133.98,3.57618491]
[1767881091000,4.23274892,134.03,133.98,11.03986231]
[1767881091379,4.23274892,134.02,133.97,3.57618491]
[1767881092176,4.23274892,134.02,133.98,3.57618491]
[1767881092904,8.11821694,134.02,133.98,3.57618491]
[1767881093404,21.10082855,134.04,134.0,3.57618491]
[1767881093704,21.10082855,134.04,133.98,7.46348943]
[1767881093705,21.10082855,134.04,134.01,3.57618491]
[1767881093894,14.29656401,134.04,133.98,26.12299084]
[1767881094092,21.75706773,134.04,134.0,3.57618491]
[1767881094610,25.33325264,134.04,133.98,7.46348943]
[1767881094898,21.75706773,134.04,134.0,3.57618491]
[1767881095595,25.33325264,134.04,133.98,7.46348943]
[1767881095901,25.33325264,134.04,133.99,3.57618491]
[1767881096201,0.65656401,134.03,133.99,3.57618491]
[1767881096784,4.23274892,134.02,133.94,38.98512213]
[1767881096985,4.23274892,134.02,133.98,3.57618491]
[1767881097194,11.6946519,134.02,133.96,7.46462106]
[1767881097399,11.6946519,134.02,133.98,3.57618491]
[1767881097597,0.65656401,134.01,133.98,3.57618491]
[1767881097804,14.29656401,134.01,133.94,87.52944527]
[1767881098007,14.29656401,134.01,133.95,3.57618491]
[1767881098008,0.65656401,133.99,133.95,3.57618491]
[1767881099111,0.65656401,133.99,133.95,11.0416532]
[1767881100288,0.65656401,133.99,133.94,7.46582346]
[1767881100502,11.69602431,133.99,133.94,7.46582346]
[1767881100702,11.69602431,133.99,133.94,11.04200837]
[1767881101011,0.65656401,133.94,133.88,7.46937556]
[1767881101212,0.65656401,133.92,133.84,3.87420853]
[1767881101508,3.57618491,133.9,133.85,7.47104968]
[1767881101702,0.65656401,133.9,133.85,7.47104968]
[1767881101892,0.65656401,133.89,133.85,7.47104968]
[1767881102096,0.65656401,133.88,133.82,7.47264558]
[1767881102305,0.68461217,133.85,133.8,7.57375031]
[1767881102514,0.68461217,133.85,133.8,7.57333905]
[1767881102804,13.62,133.85,133.8,0.1]
[1767881103004,13.62,133.85,133.81,7.47325217]
[1767881103386,13.62,133.85,133.8,0.1]
[1767881103788,13.64,133.89,133.81,6.6801107]
[1767881104088,14.32461217,133.89,133.82,0.14216157]
[1767881104387,0.68461217,133.9,133.83,0.14216157]
[1767881105333,0.68461217,133.9,133.84,7.47160789]
[1767881105486,0.70731581,133.92,133.89,9.13648683]
[1767881105815,0.70731581,133.92,133.9,9.13648683]
[1767881106105,0.70731581,133.92,133.85,0.28432314]
[1767881106698,0.70731581,133.92,133.89,9.13648683]
[1767881106905,0.70731581,133.92,133.85,0.28432314]
[1767881107102,0.70731581,133.92,133.89,9.13648683]
[1767881107415,0.70731581,133.92,133.87,7.46992569]
[1767881107617,0.70731581,133.92,133.86,7.47042535]
[1767881107820,0.70731581,133.92,133.88,9.13648683]
[1767881108244,0.70731581,133.92,133.91,9.13648683]
[1767881108529,0.70731581,133.92,133.9,9.13648683]
[1767881108732,0.70731581,133.92,133.88,7.46916821]
[1767881108935,0.70731581,133.92,133.86,7.46995187]
[1767881109127,0.70731581,133.91,133.88,9.13648683]
[1767881109427,0.70731581,133.91,133.89,9.13648683]
[1767881109633,0.70731581,133.91,133.88,9.13648683]
[1767881110023,0.70731581,133.91,133.89,9.13648683]
[1767881110326,0.70731581,133.9,133.84,7.75593103]
[1767881110527,0.70731581,133.9,133.89,9.13648683]
[1767881110719,13.64,133.92,133.89,9.13648683]
[1767881110720,0.70731581,133.92,133.89,9.13648683]
[1767881110913,0.70731581,133.92,133.84,26.43495075]
[1767881111225,0.70731581,133.96,133.91,9.13648683]
[1767881111419,0.70731581,133.96,133.93,9.13648683]
[1767881111620,0.70731581,133.96,133.94,9.13648683]
[1767881112224,0.70731581,133.96,133.95,9.13648683]
[1767881112414,0.70731581,133.98,133.95,9.13648683]
[1767881112611,0.70731581,133.98,133.96,9.13648683]
[1767881113222,0.70731581,133.99,133.92,0.28432314]
[1767881113424,0.70731581,133.99,133.98,9.13648683]
[1767881113618,0.70731581,134.03,133.98,9.13648683]
[1767881113825,0.70731581,134.03,134.02,9.13648683]
[1767881114029,0.90731581,134.05,134.02,9.13648683]
[1767881114251,0.70731581,134.07,134.04,9.13648683]
[1767881114430,0.70731581,134.09,134.06,9.13648683]
[1767881115438,0.2,134.1,134.08,9.13648683]
[1767881115620,0.70731581,134.09,134.04,0.28432314]
[1767881115936,0.70731581,134.08,134.04,16.59687856]
[1767881116130,0.70731581,134.08,134.04,7.46039173]
[1767881116432,0.70731581,134.08,134.05,9.13648683]
[1767881116808,16.79370518,134.1,133.99,20.3201107]
[1767881116809,0.70731581,134.07,133.99,6.6801107]
[1767881117014,0.70731581,134.06,134.01,9.13648683]
[1767881117210,0.70731581,134.05,134.01,9.13648683]
[1767881117436,0.70731581,134.05,134.0,7.46268656]
[1767881117628,0.70731581,134.05,134.01,9.13648683]
[1767881117827,0.70731581,134.05,134.01,7.46204496]
[1767881118038,0.70731581,134.05,134.0,16.59903882]
[1767881118241,9.84380264,134.05,134.0,16.59903882]
[1767881118543,0.70731581,134.04,134.0,16.59903882]
[1767881118743,0.70731581,134.04,134.01,7.46212174]
[1767881118922,0.70731581,134.04,134.01,16.59860857]
[1767881120135,13.84,134.1,134.03,9.13648683]
[1767881120322,0.2,134.1,134.06,9.13648683]
[1767881120725,16.79382952,134.1,134.03,0.20696358]
[1767881121029,30.43382952,134.1,134.05,9.13648683]
[1767881121338,21.29763844,134.1,134.01,26.11744596]
[1767881121538,9.33648683,134.1,134.05,9.13648683]
[1767881121716,13.82,134.1,134.05,9.13648683]
[1767881122230,0.2,134.1,134.09,9.13648683]
[1767881122437,0.2,134.1,134.06,0.20696358]
[1767881122636,0.2,134.1,134.09,5.5980964]
[1767881122933,0.2,134.1,134.06,0.20696358]
[1767881123338,0.2,134.1,134.07,5.5980964]
[1767881123717,0.2,134.1,134.07,13.05685395]
[1767881124339,0.2,134.1,134.07,7.45875755]
[1767881124548,0.2,134.1,134.09,5.5980964]
[1767881124924,0.70731581,134.13,134.09,5.5980964]
[1767881125119,0.70731581,134.13,134.08,5.5980964]
[1767881125324,0.70731581,134.12,134.08,5.5980964]
[1767881125841,0.70731581,134.11,134.07,13.05648459]
[1767881126042,0.70731581,134.11,134.08,13.05611169]
[1767881126657,0.70731581,134.11,134.08,7.45801529]
[1767881126951,0.70731581,134.11,134.08,13.05611169]
[1767881127323,0.70731581,134.11,134.07,13.05668767]
[1767881127724,0.70731581,134.11,134.08,13.05627901]
[1767881128127,0.70731581,134.11,134.08,5.5980964]
[1767881128820,0.70731581,134.13,134.09,5.5980964]
[1767881129335,0.70731581,134.13,134.08,26.10378]
[1767881129841,0.70731581,134.13,134.09,13.05532117]
[1767881130013,0.70731581,134.13,134.09,26.10141896]
[1767881130216,0.70731581,134.13,134.11,4.8730964]
[1767881130419,0.70731581,134.13,134.11,5.5980964]
[1767881131037,0.2,134.14,134.11,5.5980964]
[1767881131828,0.2,134.14,134.1,8.11268958]
[1767881132032,6.50541221,134.14,134.1,7.45706392]
[1767881132236,0.90731581,134.14,134.1,13.05516032]
[1767881132438,0.90731581,134.14,134.11,5.5980964]
[1767881132743,0.67678754,134.12,134.08,69.35803689]
[1767881132923,0.67678754,134.12,134.08,7.45803689]
[1767881133330,0.67678754,134.12,134.08,13.05613329]
[1767881133746,0.67678754,134.12,134.09,5.5980964]
[1767881135050,0.2,134.14,134.11,5.5980964]
[1767881135249,0.2,134.14,134.12,5.5980964]
[1767881135448,0.2,134.14,134.12,13.05409906]
[1767881137244,0.2,134.14,134.11,13.05445031]
[1767881137450,0.2,134.14,134.1,7.45712155]
[1767881137645,0.2,134.14,134.11,5.5980964]
[1767881138149,0.87678754,134.14,134.11,5.5980964]
[1767881138449,0.87678754,134.14,134.1,13.05521795]
[1767881139735,0.67678754,134.13,134.1,5.5980964]
[1767881141537,0.67678754,134.13,134.09,69.35759118]
[1767881141852,0.67678754,134.12,134.08,13.05629295]
[1767881142753,0.67678754,134.12,134.09,5.5980964]
[1767881142952,0.67678754,134.12,134.1,5.5980964]
[1767881143150,0.87678754,134.14,134.11,5.5980964]
[1767881143736,0.87678754,134.14,134.11,13.05442447]
[1767881143940,0.87678754,134.14,134.11,5.5980964]
[1767881144343,0.87678754,134.14,134.11,7.45645843]
[1767881144550,0.2,134.14,134.12,5.5980964]
[1767881145138,0.2,134.14,134.11,5.5980964]
[1767881145547,0.2,134.14,134.1,0.67486705]
[1767881145954,0.2,134.14,134.11,5.5980964]
[1767881147345,0.87678754,134.14,134.11,5.5980964]
[1767881147756,0.87678754,134.14,134.1,6.27296345]
[1767881148054,0.87678754,134.14,134.1,13.72997934]
[1767881148357,0.87678754,134.14,134.1,13.7300235]
[1767881148654,0.67678754,134.13,134.08,21.75279773]
[1767881148853,0.67678754,134.13,134.08,27.35089413]
[1767881149063,0.67678754,134.13,134.08,27.35119329]
[1767881149442,0.67678754,134.13,134.08,13.05632624]
[1767881149958,0.67678754,134.12,134.08,7.45822984]
[1767881150752,0.67678754,134.12,134.08,13.05632624]
[1767881151138,0.67678754,134.12,134.09,5.5980964]
[1767881151656,0.67678754,134.12,134.05,6.6801107]
[1767881151657,0.67678754,134.09,134.03,19.32672871]
[1767881151964,0.67678754,134.09,134.05,7.45979159]
[1767881152754,6.27488394,134.09,134.05,7.45979159]
[1767881153145,0.67678754,134.09,134.05,13.05788799]
[1767881153560,0.67678754,134.09,134.04,8.13510816]
[1767881153858,0.67678754,134.09,134.05,5.5980964]
[1767881154043,0.67678754,134.09,134.05,13.05766785]
[1767881154363,0.67678754,134.09,134.05,7.45957145]
[1767881155556,0.67678754,134.08,134.04,7.46021285]
[1767881155756,0.67678754,134.07,134.04,7.46021285]
[1767881155945,0.64678755,134.07,134.04,7.46021285]
[1767881156148,0.64678755,134.07,134.04,13.05830925]
[1767881156460,0.61678756,134.07,134.04,13.05830925]
[1767881156656,0.61678756,134.07,134.04,31.70945816]
[1767881157175,0.61678756,134.07,134.04,7.46021285]
[1767881157577,5.5980964,134.07,134.03,7.46098847]
[1767881158267,5.5980964,134.06,134.01,0.67486705]
[1767881158450,0.67678754,134.05,134.01,8.13664644]
[1767881158865,0.67678754,134.05,134.02,7.4614951]
[1767881159341,0.67678754,134.05,134.01,0.67486705]
[1767881159342,6.27488394,134.05,134.01,8.13682904]